fUSD/lending_fUSD_20240516
["ID","MTS","AMOUNT","RATE_DAILY","PERIOD"]
[327157411,1715863843877,-500.0,0.00011067,2]
[327157413,1715863843887,-500.0,0.00011067,2]
[327157415,1715863843896,-500.0,0.00011067,2]
[327157417,1715863843905,-500.0,0.00011067,2]
[327157419,1715863843914,-500.0,0.00011067,2]
[327157420,1715863843924,-500.0,0.00011067,2]
[327157421,1715863843934,-500.0,0.00011067,2]
[327157422,1715863843943,-384.46,0.00011067,2]
[327157423,1715863843952,-151.0,0.00011067,2]
[327157424,1715863843962,-151.0,0.00011067,2]
[327157425,1715863843971,-500.0,0.00011067,2]
[327157426,1715863843980,-500.0,0.00011067,2]
[327157427,1715863843990,-516.35,0.00011067,2]
[327157428,1715863843999,-368.69733279,0.00011067,2]
[327157429,1715863844010,-500.0,0.00011067,2]
[327157430,1715863844020,-585.31,0.00011067,2]
[327157431,1715863844029,-3000.0,0.00011067,2]
[327157432,1715863844039,-151.0,0.00011067,2]
[327157433,1715863844048,-761.26,0.00011067,2]
[327157434,1715863844058,-761.26,0.00011067,2]
[327157435,1715863844067,-665.88833583,0.00011067,2]
[327157436,1715863844081,-95.37166417,0.00011067,2]
[327157437,1715863844090,-175.72048917,0.00011067,2]
[327157438,1715863844173,-585.53951083,0.00011067,2]
[327157439,1715863844182,-761.26,0.00011067,2]
[327157440,1715863844193,-761.26,0.00011067,2]
[327157441,1715863844202,-500.0,0.00011067,2]
[327157442,1715863844212,-500.0,0.00011067,2]
[327157443,1715863844222,-500.0,0.00011067,2]
[327157444,1715863844232,-500.0,0.00011067,2]
[327157445,1715863844241,-500.0,0.00011067,2]
[327157446,1715863844251,-500.0,0.00011067,2]
[327157447,1715863844260,-534.43598392,0.00011067,2]
[327157448,1715863844270,-887.19,0.00011067,2]
[327157449,1715863844279,-887.19,0.00011067,2]
[327157450,1715863844289,-887.19,0.00011067,2]
[327157451,1715863844298,-887.19,0.00011067,2]
[327157452,1715863844308,-887.19,0.00011067,2]
[327157453,1715863844317,-166.953486,0.00011067,2]
[327157454,1715863844327,-151.0,0.00011067,2]
[327157455,1715863844336,-166.953486,0.00011067,2]
[327157456,1715863844346,-500.0,0.00011067,2]
[327157457,1715863844355,-500.0,0.00011067,2]
[327157458,1715863844365,-500.0,0.00011067,2]
[327157459,1715863844375,-201.06,0.00011067,2]
[327157460,1715863844384,-984.45,0.00011067,2]
[327157461,1715863844393,-984.45,0.00011067,2]
[327157462,1715863844402,-587.67200478,0.00011067,2]
[327157463,1715863844481,-166.636855,0.00011063,2]
[327157464,1715863844492,-396.77799522,0.00011067,2]
[327157465,1715863844501,-500.0,0.00011067,2]
[327157466,1715863844512,-33.09431964,0.00011067,2]
[327157467,1715863844526,-951.35568036,0.00011067,2]
[327157468,1715863844536,-500.0,0.00011067,2]
[327157469,1715863844546,-984.45,0.00011067,2]
[327157470,1715863844556,-500.0,0.00011067,2]
[327157471,1715863844566,-500.0,0.00011067,2]
[327157472,1715863844575,-500.0,0.00011067,2]
[327157473,1715863844584,-500.0,0.00011067,2]
[327157474,1715863844594,-420.22,0.00011067,2]
[327157475,1715863844604,-151.0,0.00011067,2]
[327157476,1715863844613,-500.0,0.00011067,2]
[327157477,1715863844623,-500.0,0.00011067,2]
[327157478,1715863844632,-540.7,0.00011067,2]
[327157479,1715863844642,-500.0,0.00011067,2]
[327157480,1715863844651,-500.0,0.00011067,2]
[327157481,1715863844661,-54.97374464,0.00011067,2]
[327157482,1715863844674,-445.02625536,0.00011067,2]
[327157483,1715863844683,-500.0,0.00011067,2]
[327157484,1715863844692,-500.0,0.00011067,2]
[327157485,1715863844701,-500.0,0.00011067,2]
[327157486,1715863844711,-428.0,0.00011067,2]
[327157487,1715863844720,-500.0,0.00011067,2]
[327157488,1715863844730,-500.0,0.00011067,2]
[327157489,1715863844740,-500.0,0.00011067,2]
[327157490,1715863844749,-500.0,0.00011067,2]
[327157491,1715863844759,-500.0,0.00011067,2]
[327157492,1715863844770,-350.72,0.00011067,2]
[327157493,1715863844779,-500.0,0.00011067,2]
[327157494,1715863844789,-500.0,0.00011067,2]
[327157495,1715863844799,-500.0,0.00011067,2]
[327157496,1715863844808,-488.06,0.00011067,2]
[327157497,1715863844819,-578.26,0.00011067,2]
[327157498,1715863844829,-500.0,0.00011067,2]
[327157499,1715863844839,-500.0,0.00011067,2]
[327157500,1715863844849,-500.0,0.00011067,2]
[327157501,1715863844858,-500.0,0.00011067,2]
[327157502,1715863844867,-500.0,0.00011067,2]
[327157503,1715863844876,-500.0,0.00011067,2]
[327157504,1715863844886,-500.0,0.00011067,2]
[327157505,1715863844895,-500.0,0.00011067,2]
[327157506,1715863844904,-500.0,0.00011067,2]
[327157507,1715863844914,-460.08,0.00011067,2]
[327157508,1715863844924,-667.04,0.00011067,2]
[327157509,1715863844933,-667.04,0.00011067,2]
[327157510,1715863844942,-667.04,0.00011067,2]
[327157511,1715863844952,-667.04,0.00011067,2]
[327157512,1715863844961,-667.04,0.00011067,2]
[327157513,1715863844971,-667.04,0.00011067,2]
[327157514,1715863844980,-500.0,0.00011067,2]
[327157515,1715863844989,-500.0,0.00011067,2]
[327157516,1715863844999,-271.45,0.00011067,2]
[327157517,1715863845009,-606.55,0.00011067,2]
[327157518,1715863845020,-3035.77,0.00011067,2]
[327157519,1715863845030,-3035.77,0.00011067,2]
[327157520,1715863845040,-3035.77,0.00011067,2]
[327157521,1715863845049,-3035.77,0.00011067,2]
[327157522,1715863845059,-3035.77,0.00011067,2]
[327157523,1715863845069,-500.0,0.00011067,2]
[327157524,1715863845079,-500.0,0.00011067,2]
[327157525,1715863845088,-500.0,0.00011067,2]
[327157526,1715863845098,-500.0,0.00011067,2]
[327157527,1715863845107,-500.0,0.00011067,2]
[327157528,1715863845117,-500.0,0.00011067,2]
[327157529,1715863845127,-500.0,0.00011067,2]
[327157530,1715863845137,-500.0,0.00011067,2]
[327157531,1715863845147,-500.0,0.00011067,2]
[327157532,1715863845156,-500.0,0.00011067,2]
[327157533,1715863845166,-182.35,0.00011067,2]
[327157534,1715863845175,-1133.95,0.00011067,2]
[327157535,1715863845185,-1133.95,0.00011067,2]
[327157536,1715863845195,-1133.95,0.00011067,2]
[327157537,1715863845204,-1133.95,0.00011067,2]
[327157538,1715863845215,-1133.95,0.00011067,2]
[327157539,1715863845224,-151.0,0.00011067,2]
[327157540,1715863845234,-500.0,0.00011067,2]
[327157541,1715863845244,-500.0,0.00011067,2]
[327157542,1715863845254,-500.0,0.00011067,2]
[327157543,1715863845264,-500.0,0.00011067,2]
[327157544,1715863845273,-500.0,0.00011067,2]
[327157545,1715863845282,-719.04,0.00011067,2]
[327157546,1715863845292,-719.04,0.00011067,2]
[327157547,1715863845302,-719.04,0.00011067,2]
[327157548,1715863845312,-719.04,0.00011067,2]
[327157549,1715863845321,-719.04,0.00011067,2]
[327157550,1715863845331,-500.0,0.00011067,2]
[327157551,1715863845341,-500.0,0.00011067,2]
[327157552,1715863845351,-500.0,0.00011067,2]
[327157553,1715863845360,-572.16,0.00011067,2]
[327157554,1715863845368,-1171.71,0.00011067,2]
[327157555,1715863845378,-1171.71,0.00011067,2]
[327157556,1715863845387,-1171.71,0.00011067,2]
[327157557,1715863845396,-1171.71,0.00011067,2]
[327157558,1715863845406,-319.81427051,0.00011067,2]
[327157559,1715863845420,-851.89572949,0.00011067,2]
[327157560,1715863845430,-500.0,0.00011067,2]
[327157561,1715863845440,-500.0,0.00011067,2]
[327157562,1715863845454,-839.98,0.00011067,2]
[327157563,1715863845464,-270.29,0.00011067,2]
[327157564,1715863845474,-839.98,0.00011067,2]
[327157565,1715863845483,-839.98,0.00011067,2]
[327157566,1715863845494,-839.98,0.00011067,2]
[327157568,1715863845505,-839.98,0.00011067,2]
[327157569,1715863845516,-839.98,0.00011067,2]
[327157570,1715863845526,-226.04,0.00011067,2]
[327157571,1715863845536,-571.53,0.00011067,2]
[327157572,1715863845544,-571.53,0.00011067,2]
[327157573,1715863845554,-571.53,0.00011067,2]
[327157574,1715863845563,-571.53,0.00011067,2]
[327157575,1715863845573,-571.53,0.00011067,2]
[327157576,1715863845584,-477.952343,0.00011067,2]
[327157577,1715863845593,-500.0,0.00011067,2]
[327157578,1715863845603,-500.0,0.00011067,2]
[327157579,1715863845613,-500.0,0.00011067,2]
[327157580,1715863845622,-500.0,0.00011067,2]
[327157582,1715863845632,-500.0,0.00011067,2]
[327157584,1715863845641,-477.952343,0.00011067,2]
[327157585,1715863845650,-500.0,0.00011067,2]
[327157586,1715863845660,-500.0,0.00011067,2]
[327157587,1715863845669,-500.0,0.00011067,2]
[327157588,1715863845679,-500.0,0.00011067,2]
[327157589,1715863845727,-500.0,0.00011067,2]
[327157590,1715863845739,-500.0,0.00011067,2]
[327157591,1715863845749,-500.0,0.00011067,2]
[327157592,1715863845758,-500.0,0.00011067,2]
[327157593,1715863845770,-500.0,0.00011067,2]
[327157594,1715863845779,-500.0,0.00011067,2]
[327157595,1715863845788,-500.0,0.00011067,2]
[327157596,1715863845797,-500.0,0.00011067,2]
[327157597,1715863845807,-500.0,0.00011067,2]
[327157598,1715863845817,-401.19,0.00011067,2]
[327157599,1715863845827,-1060.91,0.00011067,2]
[327157600,1715863845836,-1060.91,0.00011067,2]
[327157601,1715863845845,-1060.91,0.00011067,2]
[327157602,1715863845855,-1060.91,0.00011067,2]
[327157603,1715863845864,-1060.91,0.00011067,2]
[327157604,1715863845873,-1060.91,0.00011067,2]
[327157605,1715863845882,-1053.05,0.00011067,2]
[327157606,1715863845891,-1053.05,0.00011067,2]
[327157607,1715863845900,-1053.05,0.00011067,2]
[327157608,1715863845909,-1053.05,0.00011067,2]
[327157609,1715863845918,-1053.05,0.00011067,2]
[327157610,1715863845928,-500.0,0.00011067,2]
[327157611,1715863845937,-500.0,0.00011067,2]
[327157612,1715863845946,-500.0,0.00011067,2]
[327157613,1715863845955,-500.0,0.00011067,2]
[327157614,1715863845966,-500.0,0.00011067,2]
[327157615,1715863845977,-500.0,0.00011067,2]
[327157616,1715863845987,-500.0,0.00011067,2]
[327157617,1715863845996,-500.0,0.00011067,2]
[327157618,1715863846005,-500.0,0.00011067,2]
[327157619,1715863846019,-500.0,0.00011067,2]
[327157620,1715863846028,-500.0,0.00011067,2]
[327157621,1715863846038,-500.0,0.00011067,2]
[327157622,1715863846047,-500.0,0.00011067,2]
[327157623,1715863846056,-500.0,0.00011067,2]
[327157624,1715863846066,-181.32,0.00011067,2]
[327157625,1715863846075,-500.0,0.00011067,2]
[327157626,1715863846084,-500.0,0.00011067,2]
[327157627,1715863846094,-500.0,0.00011067,2]
[327157628,1715863846103,-500.0,0.00011067,2]
[327157629,1715863846113,-500.0,0.00011067,2]
[327157630,1715863846122,-500.0,0.00011067,2]
[327157631,1715863846131,-363.83,0.00011067,2]
[327157632,1715863846141,-500.0,0.00011067,2]
[327157633,1715863846150,-500.0,0.00011067,2]
[327157634,1715863846160,-500.0,0.00011067,2]
[327157635,1715863846169,-500.0,0.00011067,2]
[327157636,1715863846178,-500.0,0.00011067,2]
[327157637,1715863846188,-1092.19,0.00011067,2]
[327157638,1715863846198,-1092.19,0.00011067,2]
[327157639,1715863846207,-1092.19,0.00011067,2]
[327157640,1715863846217,-1092.19,0.00011067,2]
[327157641,1715863846226,-500.0,0.00011067,2]
[327157642,1715863846236,-500.0,0.00011067,2]
[327157643,1715863846246,-500.0,0.00011067,2]
[327157644,1715863846255,-1092.19,0.00011067,2]
[327157645,1715863846267,-500.0,0.00011067,2]
[327157646,1715863846276,-1092.19,0.00011067,2]
[327157647,1715863846285,-500.0,0.00011067,2]
[327157648,1715863846294,-500.0,0.00011067,2]
[327157649,1715863846303,-151.0,0.00011067,2]
[327157650,1715863846312,-151.0,0.00011067,2]
[327157651,1715863846322,-242.05,0.00011067,2]
[327157652,1715863846331,-77445.68517959,0.00011068,2]
[327157653,1715863846345,-539.06283141,0.00011068,2]
[327157654,1715863846360,-126404.92740006,0.00011068,2]
[327157655,1715863846371,-368.20071861,0.00011068,2]
[327157656,1715863846382,-488.73793469,0.00011068,2]
[327157657,1715863846393,-1434.8542506,0.00011068,2]
[327157658,1715863846457,-2914.49812675,0.00011068,2]
[327157659,1715863846469,-243882.60108745,0.00011068,2]
[327157660,1715863846479,-670772.00200941,0.00011068,2]
[327157661,1715863846492,-257358.47911905,0.00011068,2]
[327157662,1715863846502,-2842.30725409,0.00011068,2]
[327157663,1715863846513,-12366.62246353,0.00011068,2]
[327157664,1715863846524,-20095.46030855,0.00011068,2]
[327157665,1715863846536,-33185.92269,0.00011068,2]
[327157666,1715863846568,-151.0,0.00011063,2]
[327157667,1715863846577,-518.03614451,0.00011068,2]
[327157668,1715863846988,-13280.0,0.00011068,2]
[327157669,1715863847307,-5635.0,0.00011068,2]
[327157670,1715863847319,-873.88559492,0.00011068,2]
[327157671,1715863847343,-517.87682855,0.00011068,2]
[327157672,1715863847354,-64711.51309741,0.00011068,2]
[327157673,1715863847365,-536.82847478,0.00011068,2]
[327157684,1715863853690,698.5864817,6.164e-05,2]
[327157687,1715863954922,622.75022172,9.985e-05,2]
[327157688,1715864291473,167.04,8.219e-05,2]
[327157689,1715864305573,1741.2077354,0.0001,2]
[327157690,1715864305601,4000.0,0.0001,2]
[327157691,1715864305626,4000.0,0.0001,2]
[327157692,1715864305652,4000.0,0.0001,2]
[327157693,1715864305676,4000.0,0.0001,2]
[327157694,1715864305696,4000.0,0.0001,2]
[327157695,1715864305717,4000.0,0.0001,2]
[327157696,1715864305741,4000.0,0.0001,2]
[327157697,1715864305763,258.7922646,0.0001,2]
[327157699,1715864327133,883.0724361,9.999e-05,2]
[327157700,1715864333367,1391.09601204,9.999e-05,2]
[327157701,1715864352432,1237.86,9.924e-05,2]
[327157702,1715864354966,229.17928726,9.999e-05,2]
[327157703,1715864792546,-627.99,9.359e-05,2]
[327157827,1715865031991,-1380.30322781,9.213e-05,2]
[327157828,1715865032228,-685.99323766,9.213e-05,2]
[327157829,1715865032245,-3000.0,9.26e-05,2]
[327157830,1715865032256,-1409.91118101,9.262e-05,2]
[327157831,1715865032265,-627.99,9.316e-05,2]
[327157832,1715865032274,-17832.81,9.316e-05,2]
[327157833,1715865032284,-250.0,9.317e-05,2]
[327157834,1715865032293,-563.16,9.317e-05,2]
[327157835,1715865032303,-250.0,9.321e-05,2]
[327157836,1715865032313,-1019.29,9.324e-05,2]
[327157837,1715865032323,-1999.90774757,9.36e-05,2]
[327157838,1715865032333,-689.41,9.361e-05,2]
[327157839,1715865032343,-152.49,9.464e-05,2]
[327157840,1715865032352,-150.0,9.696e-05,2]
[327157841,1715865032363,-150.0,9.696e-05,2]
[327157842,1715865032373,-178.86,9.697e-05,2]
[327157843,1715865032384,-10047.74054964,9.697e-05,7]
[327157844,1715865032394,-316.93,9.697e-05,2]
[327157845,1715865032404,-152.49,9.711e-05,2]
[327157846,1715865032414,-152.49,9.957e-05,2]
[327157847,1715865032423,-202.50921342,9.962e-05,2]
[327157848,1715865032432,-202.50921342,9.973e-05,2]
[327157849,1715865032442,-202.50921342,9.984e-05,2]
[327157850,1715865032450,-202.50921342,9.995e-05,2]
[327157851,1715865032461,-324.73962401,0.00010005,2]
[327157852,1715865032470,-202.50921342,0.00010006,2]
[327157853,1715865032479,-310.59,0.00010011,2]
[327157854,1715865032488,-202.50921342,0.00010018,2]
[327157855,1715865032497,-202.50921342,0.00010029,2]
[327157856,1715865032507,-177.53,0.00010029,2]
[327157857,1715865032516,-202.50921342,0.0001004,2]
[327157859,1715865032525,-202.50921342,0.00010051,2]
[327157861,1715865032536,-202.50921342,0.00010062,2]
[327157863,1715865032545,-202.50921342,0.00010073,2]
[327157865,1715865032555,-202.50921342,0.00010085,2]
[327157867,1715865032564,-202.50921342,0.00010096,2]
[327157869,1715865032573,-202.50921342,0.00010107,2]
[327157871,1715865032582,-202.50921342,0.00010118,2]
[327157873,1715865032593,-2398.66849834,0.00010124,2]
[327157875,1715865032602,-202.50921342,0.00010129,2]
[327157877,1715865032612,-202.50921342,0.00010141,2]
[327157879,1715865032621,-202.50921342,0.00010152,2]
[327157881,1715865032630,-202.50921342,0.00010163,2]
[327157883,1715865032639,-202.50921342,0.00010174,2]
[327157885,1715865032649,-202.50921342,0.00010185,2]
[327157887,1715865032658,-202.50921342,0.00010196,2]
[327157889,1715865032668,-202.50921342,0.00010208,2]
[327157891,1715865032677,-202.50921342,0.00010219,2]
[327157893,1715865032687,-202.50921342,0.0001023,2]
[327157895,1715865032696,-202.50921342,0.00010241,2]
[327157897,1715865032707,-202.50921342,0.00010252,2]
[327157899,1715865032716,-202.50921342,0.00010264,2]
[327157901,1715865032725,-202.50921342,0.00010275,2]
[327157903,1715865032734,-202.50921342,0.00010286,2]
[327157905,1715865032744,-202.50921342,0.00010297,2]
[327157907,1715865032753,-202.50921342,0.00010308,2]
[327157909,1715865032762,-202.50921342,0.00010319,2]
[327157911,1715865032771,-202.50921342,0.00010331,2]
[327157913,1715865032781,-202.50921342,0.00010342,2]
[327157915,1715865032791,-202.50921342,0.00010353,2]
[327157917,1715865032801,-202.50921342,0.00010364,2]
[327157919,1715865032815,-202.50921342,0.00010375,2]
[327157921,1715865032825,-202.50921342,0.00010386,2]
[327157923,1715865032834,-202.50921342,0.00010398,2]
[327157925,1715865032844,-202.50921342,0.00010409,2]
[327157927,1715865032854,-202.50921342,0.0001042,2]
[327157929,1715865032864,-202.50921342,0.00010431,2]
[327157930,1715865032873,-202.50921342,0.00010442,2]
[327157932,1715865032884,-202.50921342,0.00010454,2]
[327157934,1715865032895,-202.50921342,0.00010465,2]
[327157936,1715865032904,-3414.1,0.00010475,2]
[327157938,1715865032913,-22929.99,0.00010475,2]
[327157940,1715865032923,-8378.23,0.00010475,2]
[327157942,1715865032933,-859.34,0.00010475,2]
[327157943,1715865032942,-780.63,0.00010475,2]
[327157944,1715865032951,-202.50921342,0.00010476,2]
[327157945,1715865032962,-202.50921342,0.00010487,2]
[327157946,1715865032971,-3034.0104,0.0001049,2]
[327157947,1715865032981,-202.50921342,0.00010498,2]
[327157948,1715865032990,-30000.0,0.000105,2]
[327157949,1715865032999,-202.50921342,0.00010509,2]
[327157950,1715865033009,-202.50921342,0.00010521,2]
[327157951,1715865033018,-689.41,0.00010531,2]
[327157952,1715865033027,-202.50921342,0.00010532,2]
[327157953,1715865033037,-202.50921342,0.00010543,2]
[327157954,1715865033046,-202.50921342,0.00010554,2]
[327157955,1715865033055,-202.50921342,0.00010565,2]
[327157956,1715865033065,-202.50921342,0.00010577,2]
[327157957,1715865033074,-202.50921342,0.00010588,2]
[327157958,1715865033084,-202.50921342,0.00010599,2]
[327157960,1715865033094,-202.50921342,0.0001061,2]
[327157962,1715865033104,-202.50921342,0.00010621,2]
[327157964,1715865033114,-202.50921342,0.00010632,2]
[327157966,1715865033124,-202.50921342,0.00010644,2]
[327157968,1715865033134,-202.50921342,0.00010655,2]
[327157970,1715865033144,-202.50921342,0.00010666,2]
[327157972,1715865033153,-202.50921342,0.00010677,2]
[327157974,1715865033163,-202.50921342,0.00010688,2]
[327157976,1715865033173,-2364.28817946,0.00010699,2]
[327157978,1715865033183,-202.50921342,0.000107,2]
[327157980,1715865033193,-1562.05275421,0.000107,2]
[327157982,1715865033202,-202.50921342,0.00010711,2]
[327157984,1715865033213,-202.50921342,0.00010722,2]
[327157986,1715865033222,-202.50921342,0.00010733,2]
[327157988,1715865033232,-202.50921342,0.00010744,2]
[327157990,1715865033241,-150.0,0.00010752,2]
[327157992,1715865033251,-202.50921342,0.00010755,2]
[327157994,1715865033260,-202.50921342,0.00010767,2]
[327157996,1715865033270,-202.50921342,0.00010778,2]
[327157998,1715865033279,-202.50921342,0.00010789,2]
[327158000,1715865033288,-202.50921342,0.000108,2]
[327158002,1715865033297,-202.50921342,0.00010811,2]
[327158004,1715865033307,-202.50921342,0.00010823,2]
[327158006,1715865033316,-202.50921342,0.00010834,2]
[327158008,1715865033326,-202.50921342,0.00010845,2]
[327158010,1715865033336,-202.50921342,0.00010856,2]
[327158012,1715865033345,-155.51377872,0.00010856,2]
[327158015,1715865033356,-202.50921342,0.00010867,2]
[327158017,1715865033367,-202.50921342,0.00010878,2]
[327158018,1715865033376,-202.50921342,0.0001089,2]
[327158021,1715865033386,-22425.7436,0.00010899,2]
[327158023,1715865033397,-59032.8908,0.000109,2]
[327158025,1715865033406,-351.59,0.000109,2]
[327158027,1715865033416,-202.50921342,0.00010901,2]
[327158029,1715865033426,-202.50921342,0.00010912,2]
[327158031,1715865033437,-202.50921342,0.00010923,2]
[327158033,1715865033446,-202.50921342,0.00010934,2]
[327158035,1715865033458,-202.50921342,0.00010946,2]
[327158037,1715865033468,-202.50921342,0.00010957,2]
[327158039,1715865033478,-184.71,0.00010959,2]
[327158041,1715865033487,-11187.13922685,0.0001096,2]
[327158043,1715865033496,-3000.0,0.0001096,2]
[327158045,1715865033506,-202.50921342,0.00010968,2]
[327158047,1715865033515,-163.73,0.0001097,2]
[327158049,1715865033525,-182.24211781,0.00010972,2]
[327158051,1715865033535,-203.6510763,0.00010972,2]
[327158052,1715865033545,-2010.6030822,0.00010972,2]
[327158053,1715865033556,-1000.0,0.00010979,2]
[327158054,1715865033567,-282.650045,0.00010979,2]
[327158055,1715865033577,-151.13388,0.00010979,2]
[327158056,1715865033586,-1000.0,0.00010979,2]
[327158057,1715865033595,-500.0,0.00010979,2]
[327158058,1715865033604,-161.12288686,0.00010979,2]
[327158059,1715865033615,-500.0,0.00010979,2]
[327158060,1715865033625,-202.50921342,0.00010979,2]
[327158061,1715865033635,-18508.0318416,0.0001098,2]
[327158062,1715865033645,-202.50921342,0.0001099,2]
[327158063,1715865033656,-5752.0,0.00010994,2]
[327158064,1715865033666,-37852.0,0.00010994,2]
[327158065,1715865033676,-5913.0,0.00010994,2]
[327158066,1715865033687,-288.735,0.00010994,2]
[327158067,1715865033697,-1047.0,0.00010994,2]
[327158068,1715865033707,-500.0,0.00010997,2]
[327158069,1715865033718,-500.0,0.00010997,2]
[327158070,1715865033728,-500.0,0.00010997,2]
[327158071,1715865033737,-500.0,0.00010997,2]
[327158072,1715865033747,-500.0,0.00010997,2]
[327158073,1715865033756,-500.0,0.00010997,2]
[327158074,1715865033766,-500.0,0.00010997,2]
[327158075,1715865033775,-586.11,0.00010997,2]
[327158076,1715865033786,-500.0,0.00010997,2]
[327158077,1715865033797,-500.0,0.00010997,2]
[327158078,1715865033808,-558.09,0.00010997,2]
[327158079,1715865033821,-500.0,0.00010997,2]
[327158080,1715865033831,-500.0,0.00010997,2]
[327158081,1715865033841,-500.0,0.00010997,2]
[327158082,1715865033850,-500.0,0.00010997,2]
[327158083,1715865033861,-500.0,0.00010997,2]
[327158084,1715865033871,-562.33,0.00010997,2]
[327158085,1715865033881,-500.0,0.00010997,2]
[327158086,1715865033891,-1161.39,0.00010997,2]
[327158087,1715865033903,-500.0,0.00010997,2]
[327158088,1715865033912,-593.41014865,0.00010997,2]
[327158089,1715865033922,-500.0,0.00010997,2]
[327158090,1715865033932,-500.0,0.00010997,2]
[327158091,1715865033942,-500.0,0.00010997,2]
[327158092,1715865033952,-500.0,0.00010998,2]
[327158093,1715865033963,-500.0,0.00010998,2]
[327158094,1715865033973,-199.75,0.00010998,2]
[327158095,1715865033982,-500.0,0.00010998,2]
[327158096,1715865033992,-500.0,0.00010998,2]
[327158097,1715865034002,-500.0,0.00010998,2]
[327158098,1715865034012,-500.0,0.00010998,2]
[327158099,1715865034022,-500.0,0.00010998,2]
[327158100,1715865034033,-500.0,0.00010998,2]
[327158101,1715865034043,-500.0,0.00010998,2]
[327158102,1715865034052,-500.0,0.00010998,2]
[327158103,1715865034062,-500.0,0.00010998,2]
[327158104,1715865034071,-500.0,0.00010998,2]
[327158105,1715865034083,-500.0,0.00010998,2]
[327158106,1715865034093,-208.74,0.00010998,2]
[327158107,1715865034104,-500.0,0.00010998,2]
[327158108,1715865034114,-500.0,0.00010998,2]
[327158109,1715865034125,-500.0,0.00010998,2]
[327158110,1715865034135,-500.0,0.00010998,2]
[327158111,1715865034146,-500.0,0.00010998,2]
[327158112,1715865034156,-500.0,0.00010998,2]
[327158113,1715865034165,-500.0,0.00010998,2]
[327158114,1715865034176,-500.0,0.00010998,2]
[327158115,1715865034186,-500.0,0.00010998,2]
[327158116,1715865034196,-500.0,0.00010998,2]
[327158117,1715865034207,-500.0,0.00010998,2]
[327158118,1715865034217,-500.0,0.00010998,2]
[327158119,1715865034227,-500.0,0.00010998,2]
[327158120,1715865034236,-855.1,0.00010998,2]
[327158121,1715865034247,-884.09,0.00010998,2]
[327158122,1715865034259,-500.0,0.00010998,2]
[327158123,1715865034268,-936.71,0.00010998,2]
[327158124,1715865034279,-500.0,0.00010998,2]
[327158125,1715865034291,-380.80431245,0.00010999,2]
[327158126,1715865034302,-500.0,0.00010999,2]
[327158127,1715865034311,-500.0,0.00010999,2]
[327158128,1715865034321,-324.13226126,0.00010999,2]
[327158129,1715865034330,-155.34432872,0.00010999,2]
[327158130,1715865034339,-325.08159042,0.00010999,2]
[327158131,1715865034351,-500.0,0.00010999,2]
[327158132,1715865034362,-201.99,0.00010999,2]
[327158133,1715865034372,-500.0,0.00010999,2]
[327158134,1715865034383,-500.0,0.00010999,2]
[327158135,1715865034393,-500.0,0.00010999,2]
[327158136,1715865034403,-500.0,0.00010999,2]
[327158137,1715865034413,-500.0,0.00010999,2]
[327158138,1715865034424,-500.0,0.00010999,2]
[327158139,1715865034434,-500.0,0.00010999,2]
[327158140,1715865034445,-500.0,0.00010999,2]
[327158141,1715865034455,-500.0,0.00010999,2]
[327158142,1715865034466,-537.8,0.00010999,2]